bitfinex/quotes_ETHUSD_20250702
["timestamp","ask_amount","ask_price","bid_price","bid_amount"]
[1751478787367,0.55,2565.5,2564.8,0.92737489]
[1751478787571,10.55,2565.5,2564.6,2.194]
[1751478787773,0.55,2565.3,2564.7,8.483]
[1751478788069,1.54750122,2565.4,2564.7,8.483]
[1751478788390,0.55,2565.5,2564.8,0.92705604]
[1751478788590,0.55,2565.5,2564.7,8.483]
[1751478788787,0.55,2565.5,2564.8,0.92694693]
[1751478788991,0.55,2565.5,2564.7,8.77916509]
[1751478789196,0.55,2565.5,2564.8,0.92692671]
[1751478789493,0.55,2565.5,2564.9,0.92672225]
[1751478789655,0.55,2565.5,2564.8,0.9969]
[1751478789855,1.0272,2565.6,2564.9,4.82547223]
[1751478790056,1.5087,2565.9,2565.0,3.8986077]
[1751478790259,1.5087,2565.9,2565.1,8.48]
[1751478790557,1.5087,2565.9,2565.2,6.09224932]
[1751478790756,0.9587,2565.9,2565.2,2.194]
[1751478790962,0.55,2566.2,2565.3,3.89804899]
[1751478790963,0.55,2566.1,2565.3,3.89804899]
[1751478791207,0.55,2566.1,2565.4,4.9233222]
[1751478791516,0.9349,2566.2,2565.4,1.0253]
[1751478791661,0.9349,2566.2,2565.5,10.673]
[1751478792603,0.9349,2566.2,2565.5,14.57084427]
[1751478792813,0.01,2565.9,2565.7,3.89755274]
[1751478793102,0.01,2565.9,2565.5,12.622431]
[1751478793310,0.01,2565.9,2565.8,3.8974199]
[1751478793896,0.01,2565.9,2565.8,4.0918199]
[1751478794108,0.01,2565.9,2565.8,7.4580199]
[1751478794311,0.01,2565.9,2565.8,13.31357701]
[1751478794497,0.01,2565.9,2565.8,14.23844073]
[1751478795684,0.01,2565.9,2565.8,24.90744073]
[1751478795879,0.01,2565.9,2565.8,10.34102083]
[1751478796125,0.01,2565.9,2565.8,48.23284946]
[1751478796414,0.02,2566.4,2566.2,3.8968124]
[1751478796575,0.02,2566.4,2566.3,8.473]
[1751478796780,0.02,2566.4,2566.3,8.6674]
[1751478797415,0.02,2566.4,2566.3,12.56406056]
[1751478797725,0.02,2566.4,2566.3,30.39154695]
[1751478798100,0.02,2566.4,2566.3,26.49488639]
[1751478798476,0.02,2566.4,2566.3,28.68688639]
[1751478798682,0.02,2566.4,2566.3,18.02188639]
[1751478798986,0.02,2566.4,2566.3,26.5678]
[1751478799511,0.02,2566.4,2566.3,15.78400936]
[1751478799918,0.02,2566.4,2566.3,15.78300936]
[1751478800090,0.02,2566.4,2566.3,5.12100936]
[1751478800513,0.02,2566.4,2566.3,15.85773314]
[1751478801302,0.02,2566.4,2566.3,15.85673314]
[1751478801513,0.02,2566.4,2566.3,5.19573314]
[1751478801720,0.02,2566.4,2566.3,15.85673314]
[1751478801908,0.02,2566.4,2566.3,5.19573314]
[1751478802237,0.02,2566.4,2566.3,15.85573314]
[1751478802538,0.02,2566.4,2566.3,15.85473314]
[1751478803119,0.02,2566.4,2566.3,16.99501621]
[1751478803725,0.02,2566.4,2566.3,16.99518064]
[1751478803921,0.02,2566.4,2566.3,6.33618064]
[1751478804235,0.02,2566.4,2566.3,6.33618733]
[1751478804618,0.02,2566.4,2566.3,16.99418733]
[1751478804819,0.02,2566.4,2566.3,18.80809424]
[1751478805018,0.02,2566.4,2566.3,18.80709424]
[1751478805615,0.02,2566.4,2566.3,22.7037548]
[1751478805821,0.02,2566.4,2566.3,18.80709424]
[1751478807233,0.02,2566.4,2566.3,18.80843899]
[1751478807429,0.02,2566.4,2566.3,22.70509955]
[1751478807946,0.02,2566.4,2566.3,18.80843899]
[1751478808142,0.02,2566.4,2566.3,8.15243899]
[1751478808346,0.02,2566.4,2566.3,9.30900175]
[1751478808526,0.02,2566.4,2566.3,18.14709484]
[1751478808721,0.02,2566.4,2566.3,7.49409484]
[1751478809066,0.02,2566.4,2566.3,1.43338631]
[1751478809249,0.02,2566.4,2566.3,9.89338631]
[1751478809412,0.02,2566.4,2566.3,9.67558334]
[1751478809913,0.02,2566.4,2566.3,1.21658334]
[1751478810122,0.02,2566.4,2566.3,9.67558334]
[1751478812861,0.02,2566.4,2566.3,8.75033314]
[1751478813067,0.57,2566.4,2566.0,1.35096276]
[1751478813256,1.1983,2566.2,2566.1,8.456]
[1751478813647,1.1983,2566.2,2565.8,4.71]
[1751478814145,0.7444,2566.0,2565.9,8.456]
[1751478814946,0.7444,2566.0,2565.7,2.181]
[1751478815159,0.7444,2566.0,2565.9,8.455]
[1751478815752,0.1944,2566.0,2565.9,8.455]
[1751478816074,0.1944,2566.0,2565.9,9.38517273]
[1751478816740,0.1944,2566.0,2565.9,0.93017273]
[1751478816947,0.1944,2566.0,2565.9,9.38317273]
[1751478819972,0.1944,2566.2,2565.9,11.77862736]
[1751478820275,0.1944,2566.2,2566.1,1.55254163]
[1751478820463,0.02,2566.4,2566.1,10.93371436]
[1751478820665,0.02,2566.4,2566.3,1.16473589]
[1751478820972,0.02,2566.4,2566.3,9.38117273]
[1751478821165,0.02,2566.4,2566.3,10.69264417]
[1751478821362,0.02,2566.4,2566.3,12.4395858]
[1751478821575,0.02,2566.4,2566.3,14.62038336]
[1751478822099,0.02,2566.4,2566.3,15.60968336]
[1751478822567,0.02,2566.4,2566.3,17.95300473]
[1751478822744,0.02,2566.4,2566.3,30.28181717]
[1751478823077,0.215955,2566.7,2566.5,10.0]
[1751478823374,0.215955,2566.7,2566.6,10.57257273]
[1751478823871,0.215955,2566.7,2566.6,9.6424]
[1751478824086,0.215955,2566.7,2566.6,13.53860509]
[1751478824583,0.01,2567.0,2566.9,3.89574973]
[1751478824742,0.01,2567.0,2566.9,45.23879594]
[1751478824944,0.01,2567.0,2566.9,45.43319594]
[1751478825445,0.01,2567.0,2566.9,45.23879594]
[1751478825641,0.01,2567.0,2566.9,28.28638721]
[1751478825962,0.01,2567.0,2566.9,31.38764683]
[1751478826166,0.01,2567.0,2566.9,31.38664683]
[1751478826343,0.01,2567.0,2566.9,28.28538721]
[1751478826540,0.01,2567.0,2566.9,17.65938721]
[1751478826779,0.01,2567.0,2566.9,28.28538721]
[1751478827278,0.01,2567.0,2566.9,28.28438721]
[1751478827672,0.01,2567.0,2566.9,17.65938721]
[1751478827977,0.01,2567.0,2566.9,13.76363748]
[1751478828156,0.01,2567.0,2566.9,14.38763748]
[1751478828357,0.01,2567.0,2566.9,12.76093748]
[1751478828545,0.01,2567.0,2566.8,10.12724323]
[1751478828747,0.01,2567.0,2566.9,10.622]
[1751478828976,0.01,2567.0,2566.9,11.78394964]
[1751478829773,0.01,2567.0,2566.9,10.622]
[1751478830468,0.01,2567.0,2566.9,11.78363258]
[1751478830648,0.01,2567.0,2566.9,13.89721723]
[1751478830854,0.01,2567.0,2566.9,12.73558465]
[1751478832083,0.01,2567.0,2566.9,28.18054832]
[1751478832249,0.01,2567.0,2566.9,28.17654832]
[1751478832451,0.01,2567.0,2566.9,26.62733438]
[1751478832651,0.01,2567.0,2566.9,27.59863438]
[1751478833271,0.01,2567.0,2566.9,47.35402738]
[1751478833782,0.01,2567.5,2567.4,14.86099104]
[1751478833991,0.01,2567.5,2567.4,29.49409014]
[1751478834351,0.01,2567.5,2567.4,31.03969814]
[1751478834660,0.01,2567.5,2567.4,18.7077071]
[1751478834859,0.01,2567.5,2567.4,27.7770991]
[1751478835188,0.01,2567.5,2567.4,33.21730392]
[1751478835374,0.01,2567.5,2567.4,33.41170392]
[1751478835704,0.01,2567.5,2567.4,29.51605039]
[1751478835874,0.01,2567.5,2567.4,33.41107274]
[1751478836355,0.01,2567.5,2567.4,33.70625529]
[1751478836555,0.01,2567.5,2567.4,32.16167269]
[1751478836863,0.01,2567.5,2567.4,33.70625529]
[1751478837253,0.01,2567.5,2567.4,23.09125529]
[1751478837460,0.01,2567.5,2567.4,28.26468165]
[1751478837786,0.01,2567.5,2567.4,29.80826425]
[1751478837978,0.01,2567.5,2567.4,28.26368165]
[1751478838186,0.01,2567.5,2567.4,29.80731001]
[1751478838364,0.01,2567.5,2567.4,17.65168165]
[1751478838569,0.01,2567.5,2567.4,29.42019747]
[1751478838957,0.01,2567.5,2567.4,33.31518851]
[1751478839153,0.01,2567.5,2567.4,29.42019747]
[1751478839594,0.01,2567.5,2567.4,17.84319747]
[1751478839757,0.01,2567.5,2567.4,25.81058255]
[1751478840792,0.01,2567.5,2567.4,30.86308941]
[1751478841093,0.01,2567.5,2567.4,26.96709837]
[1751478841290,0.01,2567.5,2567.4,25.80858255]
[1751478841609,0.01,2567.5,2567.4,7.37958255]
[1751478841767,0.01,2567.5,2567.1,1.15751582]
[1751478841955,0.01,2567.5,2567.2,10.608]
[1751478842358,0.01,2567.5,2567.3,0.1944]
[1751478842588,0.01,2567.5,2567.4,8.428]
[1751478843000,0.01,2567.5,2567.4,10.89039224]
[1751478843199,0.01,2567.5,2567.4,10.596]
[1751478844489,0.01,2567.5,2567.4,11.6556]
[1751478844967,0.01,2567.5,2567.1,1.15751582]
[1751478845163,0.01,2567.5,2567.2,10.594]
[1751478845369,0.01,2567.5,2567.2,10.88520932]
[1751478845592,0.01,2567.5,2567.3,10.593]
[1751478845865,0.01,2567.5,2567.1,0.1944]
[1751478846069,0.01,2567.5,2567.2,10.593]
[1751478846268,0.01,2567.5,2567.3,10.593]
[1751478847373,0.01,2567.5,2567.4,10.593]
[1751478849498,0.01,2567.5,2567.4,17.43067151]
[1751478849688,0.01,2567.5,2567.4,15.88704315]
[1751478850502,0.01,2567.5,2567.4,18.20717067]
[1751478850899,0.01,2567.5,2567.4,15.88704315]
[1751478851107,0.01,2567.5,2567.4,18.21468952]
[1751478851284,0.01,2567.5,2567.4,15.88704315]
[1751478851677,0.01,2567.5,2567.4,25.88704315]
[1751478851877,0.01,2567.5,2567.4,26.78364315]
[1751478852082,0.01,2567.5,2567.4,31.49364315]
[1751478852377,0.01,2567.5,2567.4,31.48864315]
[1751478853011,0.01,2567.5,2567.4,34.58990277]
[1751478853698,0.01,2567.5,2567.4,31.48864315]
[1751478854077,0.01,2567.5,2567.4,33.88864315]
[1751478854482,0.01,2567.5,2567.4,23.30064315]
[1751478854678,0.01,2567.5,2567.4,29.17664315]
[1751478854894,0.01,2567.5,2567.4,33.88664315]
[1751478856519,0.01,2567.5,2567.4,72.50505188]
[1751478856723,0.01,2567.5,2567.4,42.50505188]
[1751478856918,0.01,2568.1,2568.0,0.9039]
[1751478857096,0.01,2568.1,2568.0,12.16110354]
[1751478857296,0.01,2568.1,2568.0,16.05518453]
[1751478858203,0.01,2568.1,2568.0,12.16110354]
[1751478858385,0.01,2568.1,2568.0,11.25720354]
[1751478858588,0.01,2568.1,2568.0,12.80868475]
[1751478858796,0.01,2568.1,2568.0,11.25520354]
[1751478859196,0.01,2568.1,2568.0,4.56828453]
[1751478859534,0.01,2568.1,2568.0,17.47871352]
[1751478859826,0.01,2568.1,2568.0,16.04838453]
[1751478860524,0.1944,2569.0,2568.1,14.729511]
[1751478860737,0.9311,2569.1,2568.7,1.16418309]
[1751478860932,0.9311,2569.1,2569.0,1.16418309]
[1751478861231,0.9311,2569.1,2569.0,10.579]
[1751478861789,0.410355,2569.2,2569.0,10.579]
[1751478861790,0.215955,2569.2,2569.0,10.579]
[1751478861989,0.215955,2569.2,2569.1,0.1944]
[1751478864511,0.215955,2569.2,2569.1,8.408]
[1751478864713,0.410355,2569.2,2568.9,1.16418309]
[1751478864912,0.985,2569.1,2569.0,8.407]
[1751478865110,2.1245355,2569.1,2569.0,8.407]
[1751478866010,0.985,2569.1,2569.0,8.407]
[1751478867226,0.985,2569.1,2569.0,8.69632244]
[1751478867441,0.215955,2569.2,2569.0,8.69632244]
[1751478868028,0.215955,2569.2,2569.1,0.9643]
[1751478868345,0.215955,2569.2,2569.1,14.32958309]
[1751478868524,0.215955,2569.2,2569.1,13.1654]
[1751478869173,0.215955,2569.2,2569.1,2.5944]
[1751478869337,0.215955,2569.2,2569.1,13.1644]
[1751478869535,0.215955,2569.2,2569.1,14.04019055]
[1751478870592,0.215955,2569.2,2569.1,2.5944]
[1751478870790,0.215955,2569.2,2569.1,12.968]
[1751478871007,0.215955,2569.2,2569.1,13.1624]
[1751478871203,0.215955,2569.2,2569.1,2.5944]
[1751478871429,0.215955,2569.2,2569.1,13.1624]
[1751478871629,0.215955,2569.2,2569.1,2.5944]
[1751478871825,1.113755,2569.2,2569.1,2.4]
[1751478872043,1.308155,2569.2,2569.1,10.8]
[1751478872428,1.308155,2569.2,2569.1,2.4]
[1751478872600,1.308155,2569.2,2568.7,0.1944]
[1751478872601,1.308155,2569.2,2568.9,2.167]
[1751478873154,1.308155,2569.2,2569.0,8.4]
[1751478873910,1.318155,2569.2,2569.0,8.4]
[1751478875635,1.318155,2569.2,2568.8,0.29328449]
[1751478875954,1.318155,2569.2,2568.9,10.553]
[1751478877322,1.318155,2569.2,2568.7,0.1944]
[1751478877522,1.318155,2569.2,2568.8,10.552]
[1751478877723,1.318155,2569.2,2568.9,10.551]
[1751478878364,0.9321,2569.1,2569.0,8.395]
[1751478878526,1.4821,2568.9,2568.8,6.866]
[1751478878864,1.68531,2568.9,2568.8,6.866]
[1751478879226,1.68531,2568.9,2568.8,15.26]
[1751478879427,1.68531,2568.9,2568.8,10.55]
[1751478879662,1.68531,2568.9,2568.8,2.156]
[1751478879872,0.55,2568.6,2568.4,4.71]
[1751478880021,0.9592,2568.5,2568.4,4.71]
[1751478880232,0.9592,2568.5,2568.1,4.71]
[1751478880233,0.1944,2568.4,2568.1,4.71]
[1751478880468,0.1944,2568.4,2568.2,8.393]
[1751478880862,0.1944,2568.4,2568.1,4.71]
[1751478881184,0.1944,2568.4,2568.2,8.393]
[1751478881488,0.1944,2568.4,2568.3,8.392]
[1751478883196,0.9256,2568.8,2568.3,9.9178]
[1751478883490,0.1944,2568.7,2568.3,8.392]
[1751478884141,0.1944,2568.7,2568.4,4.71]
[1751478884345,0.1944,2568.7,2568.5,10.547]
[1751478884545,0.9256,2568.5,2568.2,1.16418309]
[1751478884866,0.9256,2568.5,2567.6,9.55518309]
[1751478884867,0.55,2568.4,2567.6,9.55518309]
[1751478885041,0.55,2568.4,2567.7,2.36324272]
[1751478885243,0.9256,2568.5,2567.7,2.36324272]
[1751478885244,0.9256,2568.5,2567.7,3.52742581]
[1751478885439,0.9256,2568.5,2567.8,2.12898309]
[1751478885680,0.9256,2568.5,2567.9,9.55418309]
[1751478885857,0.8756,2568.5,2568.0,2.156]
[1751478886638,0.8756,2568.5,2568.0,3.32018309]
[1751478888771,0.8756,2568.5,2568.1,1.16418309]
[1751478888972,0.8756,2568.5,2568.0,3.32018309]
[1751478890167,0.8756,2568.5,2568.1,4.71]
[1751478894906,1.07,2568.5,2568.1,4.71]
[1751478895197,1.07,2568.5,2568.1,6.51580301]
[1751478896020,1.07,2568.5,2568.2,4.71]
[1751478896313,1.02,2568.5,2568.3,4.71]
[1751478896701,0.55,2568.8,2568.1,6.51580301]
[1751478896874,0.1944,2568.8,2568.4,0.1944]
[1751478897074,0.01,2568.5,2568.3,9.5760139]
[1751478897620,0.01,2568.5,2568.4,0.1944]
[1751478899971,0.01,2568.5,2568.4,1.74664413]
[1751478900208,0.01,2568.5,2568.4,4.02002214]
[1751478901913,0.01,2568.5,2568.4,8.73002214]
[1751478902582,0.9854,2568.5,2568.4,0.1944]
[1751478902785,0.55,2568.4,2568.3,1.55281363]
[1751478903021,1.5254,2568.4,2568.2,1.16470698]
[1751478903226,0.9754,2568.4,2568.3,1.16470698]
[1751478903522,1.5254,2568.4,2568.2,1.16470698]
[1751478903686,0.55,2568.4,2568.2,1.16470698]
[1751478904088,0.9516,2568.3,2568.2,1.16470698]
[1751478904921,1.146,2568.3,2568.2,1.16470698]
[1751478905325,1.146,2568.3,2568.0,16.41770698]
[1751478905621,1.146,2568.3,2568.0,16.61210698]
[1751478905918,1.146,2568.3,2568.2,1.16470698]
[1751478906126,2.20093496,2568.3,2568.0,1.18470698]
[1751478906291,0.1944,2568.1,2568.0,0.02]
[1751478906712,0.7444,2568.1,2568.0,0.02]
[1751478906914,15.59922936,2568.1,2568.0,0.02]
[1751478907623,0.55,2567.6,2567.5,0.02]
[1751478907829,14.1465395,2567.6,2567.5,0.02]
[1751478908119,11.6471,2567.6,2567.5,0.02]
[1751478909110,1.0971,2567.6,2567.5,0.02]
[1751478909515,0.1944,2567.6,2567.5,0.02]
[1751478909717,0.9027,2568.4,2567.5,3.91482499]
[1751478909890,0.1944,2567.9,2567.5,4.10922499]
[1751478910527,0.9027,2568.4,2567.6,3.89455327]
[1751478910831,0.1944,2568.1,2567.7,8.373]
[1751478911626,0.1944,2568.1,2567.6,0.1944]
[1751478911830,0.9027,2568.0,2567.6,2.3404]
[1751478913132,0.9027,2568.0,2567.6,0.1944]
[1751478913328,0.55,2567.9,2567.6,0.1944]
[1751478913506,0.1944,2567.6,2567.5,0.02]
[1751478916600,0.9027,2568.0,2567.5,0.02]
[1751478916935,0.1944,2567.8,2567.5,0.02]
[1751478918424,0.55,2567.9,2567.5,0.02]
[1751478918638,0.55,2567.6,2567.5,0.02]
[1751478918801,1.5027,2567.6,2567.5,0.02]
[1751478919002,12.65297,2567.6,2567.5,0.02]
[1751478919911,16.54765764,2567.6,2567.5,0.02]
[1751478920234,12.65297,2567.6,2567.5,0.02]
[1751478922740,0.9527,2567.6,2567.5,0.02]
[1751478923225,1.5027,2567.6,2567.5,0.02]
[1751478923533,15.39738764,2567.6,2567.5,0.02]
[1751478924146,28.72579637,2567.6,2567.5,0.02]
[1751478924448,4.44529448,2567.2,2567.1,0.02]
[1751478924604,37.00770321,2567.2,2567.1,0.02]
[1751478925339,19.784,2567.2,2567.1,0.02]
[1751478925546,11.419,2567.2,2567.1,0.02]
[1751478930014,67.00570321,2567.2,2567.1,0.02]
[1751478930210,71.01902745,2567.2,2567.1,0.02]
[1751478930450,57.69061872,2567.2,2567.1,0.02]
[1751478930749,57.68861872,2567.2,2567.1,0.02]
[1751478932515,14.44544622,2567.1,2567.0,0.02]
[1751478932715,49.34147046,2567.1,2567.0,0.02]
[1751478934848,19.34147046,2567.1,2567.0,0.02]
[1751478935216,49.34147046,2567.1,2567.0,0.02]
[1751478936034,50.11232581,2567.1,2567.0,0.02]
[1751478936447,20.11232581,2567.1,2567.0,0.02]
[1751478937734,50.11232581,2567.1,2567.0,0.02]
[1751478938346,20.11232581,2567.1,2567.0,0.02]
[1751478938657,45.31369797,2567.0,2566.9,0.02]
[1751478938860,47.71446,2567.0,2566.9,0.02]
[1751478939064,17.71446,2567.0,2566.9,0.02]
[1751478939556,47.71446,2567.0,2566.9,0.02]
[1751478940750,18.48562606,2567.0,2566.9,0.02]
[1751478940961,48.48562606,2567.0,2566.9,0.02]
[1751478941128,47.71446,2567.0,2566.9,0.02]
[1751478941463,17.71446,2567.0,2566.9,0.02]
[1751478942856,47.71446,2567.0,2566.9,0.02]
[1751478944297,48.48642113,2567.0,2566.9,0.02]
[1751478944764,4.44605329,2566.7,2566.4,0.02]
[1751478944940,15.3303569,2566.5,2566.4,0.02]
[1751478945959,45.3303569,2566.5,2566.4,0.02]
[1751478947234,50.20532746,2566.5,2566.4,0.02]
[1751478947434,46.10232746,2566.5,2566.4,0.02]
[1751478949901,28.72477299,2566.1,2565.9,0.02]
[1751478950100,30.07508739,2566.1,2565.9,0.02]
[1751478950594,60.07508739,2566.1,2565.9,0.02]
[1751478951253,30.07508739,2566.1,2565.9,0.02]
[1751478952447,60.07508739,2566.1,2565.9,0.02]
[1751478952646,60.84778489,2566.1,2565.9,0.02]
[1751478955575,0.1944,2566.0,2565.8,0.02]
[1751478955776,53.75116801,2565.9,2565.8,0.02]
[1751478955977,24.52386551,2565.9,2565.8,0.02]
[1751478956285,16.17586551,2565.9,2565.8,0.02]
[1751478956491,24.52386551,2565.9,2565.8,0.02]
[1751478956664,20.6265975,2565.9,2565.8,0.02]
[1751478956857,18.348,2565.9,2565.8,0.02]
[1751478957059,18.898,2565.9,2565.8,0.02]
[1751478957256,10.0,2565.9,2565.8,0.8896]
[1751478957501,30.0,2566.6,2565.8,0.8896]
[1751478957707,12.24343123,2566.5,2565.8,0.8896]
[1751478957859,0.55,2566.3,2565.8,0.8896]
[1751478958061,0.55,2566.1,2565.8,0.8896]
[1751478958383,10.0,2566.1,2565.8,0.8896]
[1751478958905,8.897,2566.0,2565.8,0.02]
[1751478959087,14.44726801,2565.9,2565.8,0.02]
[1751478959395,15.22227072,2565.9,2565.8,0.02]
[1751478959714,46.14727072,2565.9,2565.8,0.02]
[1751478959860,58.50659496,2565.9,2565.8,0.02]
[1751478960892,28.50659496,2565.9,2565.8,0.02]
[1751478961773,19.23559496,2565.9,2565.8,0.02]
[1751478961971,27.58059496,2565.9,2565.8,0.02]
[1751478963006,57.58059496,2565.9,2565.8,0.02]
[1751478963187,14.44757181,2565.7,2565.6,0.02]
[1751478963396,71.33777391,2565.7,2565.6,0.02]
[1751478963762,73.46577391,2565.7,2565.6,0.02]
[1751478964606,43.46577391,2565.7,2565.6,0.02]
[1751478964780,41.33677391,2565.7,2565.6,0.02]
[1751478965397,15.76779337,2565.7,2565.6,0.02]
[1751478965599,14.45038301,2565.7,2565.6,0.02]
[1751478965804,54.44978948,2565.7,2565.6,0.02]
[1751478966370,24.44978948,2565.7,2565.6,0.02]
[1751478966565,54.44978948,2565.7,2565.6,0.02]
[1751478967616,26.57778948,2565.7,2565.6,0.02]
[1751478967817,30.02665526,2565.7,2565.6,0.02]
[1751478967978,10.24865526,2565.7,2565.6,0.02]
[1751478968174,45.14078948,2565.7,2565.6,0.02]
[1751478968368,55.69078948,2565.7,2565.6,0.02]
[1751478968976,55.69951857,2565.7,2565.6,0.02]
[1751478969184,25.69951857,2565.7,2565.6,0.02]
[1751478969393,56.61111857,2565.7,2565.6,0.02]
[1751478969598,3.89863547,2565.0,2564.9,0.02]
[1751478969800,22.78863547,2565.0,2564.9,0.02]
[1751478970111,52.78863547,2565.0,2564.9,0.02]
[1751478970288,53.57174264,2565.0,2564.9,0.02]
[1751478971374,22.78863547,2565.0,2564.9,0.02]
[1751478971613,24.50398314,2565.0,2564.9,0.02]
[1751478973782,54.50398314,2565.0,2564.9,0.02]
[1751478974307,55.288182,2565.0,2564.9,0.02]
[1751478974614,55.28809634,2565.0,2564.9,0.02]
[1751478975578,0.55,2563.9,2563.8,0.9068]
[1751478975794,4.45030812,2563.9,2563.8,0.9068]
[1751478975989,0.55,2564.6,2563.8,0.9068]
[1751478976189,0.1944,2563.9,2563.8,0.9068]
[1751478978082,0.55,2564.3,2563.8,0.9068]
[1751478978323,0.1944,2564.1,2563.8,0.9068]
[1751478978481,0.1944,2564.1,2563.8,0.9268]
[1751478978686,0.1944,2564.4,2563.9,1.1008]
[1751478978920,0.1944,2564.4,2564.1,0.9064]
[1751478980920,2.129,2565.4,2564.2,0.9064]
[1751478981107,0.1944,2564.6,2564.4,0.9064]
[1751478981307,0.1944,2564.6,2564.3,4.71]
[1751478981308,0.1944,2564.6,2564.5,0.56164]
[1751478981621,0.1944,2564.6,2564.5,0.9064]
[1751478981989,8.336,2565.1,2564.5,0.9064]
[1751478982190,0.1944,2564.8,2564.5,0.9064]
[1751478982703,0.55,2565.0,2564.5,0.9064]
[1751478983020,0.1944,2564.6,2564.5,0.9064]
[1751478983222,0.55,2565.3,2564.5,0.9064]
[1751478983522,0.1944,2564.9,2564.5,0.9064]
[1751478983725,0.1944,2564.9,2564.6,0.32298]
[1751478983937,0.1944,2564.9,2564.7,0.9506]
[1751478986622,0.55,2564.9,2564.7,0.9506]
[1751478987121,0.1944,2564.7,2564.5,0.8855]
[1751478990763,0.1944,2564.9,2564.5,0.8855]
[1751478991033,0.1944,2564.9,2564.6,0.9101]
[1751478992813,0.1944,2565.3,2564.8,1.1045]
[1751478993431,0.01,2565.0,2564.8,1.1045]
[1751478993628,0.01,2565.0,2564.9,1.26165]
[1751478995856,0.01,2565.0,2564.9,1.45605]
[1751478996026,0.01,2565.0,2564.9,5.35483747]
[1751478996212,0.01,2565.0,2564.9,1.45605]
[1751478996719,0.01,2565.0,2564.9,6.16605]
[1751478997148,0.01,2565.0,2564.9,20.06483747]
[1751478997447,0.01,2565.0,2564.9,31.07701617]
[1751478999223,0.01,2565.9,2565.3,3.89813656]
[1751478999418,0.01,2565.9,2565.1,3.89848348]
[1751478999419,0.01,2565.9,2565.6,0.1944]
[1751479002563,0.01,2565.9,2565.6,4.8944]
[1751479002759,0.01,2565.9,2565.7,0.9118]
[1751479008451,0.01,2565.9,2565.7,5.6118]
[1751479010024,0.01,2565.9,2565.8,0.1944]
[1751479010219,0.01,2565.9,2565.8,0.98682]
[1751479010452,0.01,2565.9,2565.8,6.60822]
[1751479010655,0.01,2566.1,2566.0,3.89711613]
[1751479010854,0.01,2566.1,2566.0,23.13431613]
[1751479011024,0.01,2566.1,2566.0,23.32871613]
[1751479011220,0.01,2566.1,2566.0,38.66724437]
[1751479011429,0.01,2566.1,2566.0,27.34204037]
[1751479011827,0.01,2566.1,2566.0,25.56192424]
[1751479012561,0.01,2566.1,2566.0,42.7874491]
[1751479013827,0.01,2566.1,2566.0,32.3594491]
[1751479014069,0.01,2566.1,2566.0,42.7864491]
[1751479014227,0.01,2566.1,2566.0,28.46233297]
[1751479014423,0.01,2566.1,2566.0,29.45704037]
[1751479015343,0.01,2566.1,2566.0,15.13392424]
[1751479015549,0.01,2566.1,2566.0,25.55892424]
[1751479015746,0.01,2566.1,2566.0,29.45604037]
[1751479015951,0.01,2566.1,2566.0,25.55892424]
[1751479016560,0.01,2566.1,2566.0,29.45604037]
[1751479016765,0.01,2566.1,2566.0,25.55892424]
[1751479017740,0.01,2566.1,2566.0,15.13392424]
[1751479017986,0.01,2566.1,2566.0,0.1944]
[1751479018278,0.01,2566.1,2565.7,0.8658]
[1751479018433,0.01,2566.1,2565.9,0.1944]
[1751479019874,0.01,2566.1,2565.8,10.422]
[1751479021049,0.01,2566.1,2565.7,0.1944]
[1751479021249,0.01,2566.1,2565.8,8.303]
[1751479023250,0.043414,2566.2,2565.8,8.303]
[1751479024046,0.043414,2566.2,2565.3,2.109]
[1751479024047,5.31152851,2566.1,2565.3,2.109]
[1751479024268,0.1944,2565.8,2565.3,2.3034]
[1751479024567,0.1944,2566.0,2565.5,0.1944]
[1751479025189,0.1944,2566.0,2565.6,0.9306]
[1751479027052,0.1944,2566.0,2565.5,0.1944]
[1751479027374,0.1944,2566.0,2565.5,1.3478]
[1751479029274,0.1944,2566.0,2565.6,4.69]
[1751479035081,0.1944,2566.0,2565.7,4.69]
[1751479036180,0.55,2565.8,2565.7,4.69]
[1751479036384,0.55,2565.6,2565.1,6.799]
[1751479036557,0.1944,2565.5,2565.1,6.799]
[1751479036748,0.1944,2565.3,2565.1,6.799]
[1751479037185,0.8598,2565.7,2565.1,6.799]
[1751479037484,0.1944,2565.5,2565.1,8.89446714]
[1751479039569,0.1944,2565.5,2565.1,6.9934]
[1751479041015,0.1944,2565.5,2565.2,4.69]
[1751479046293,0.1944,2565.5,2565.1,2.3034]
[1751479046294,1.4854,2565.4,2565.1,0.1944]
[1751479046624,15.38433948,2564.8,2564.7,0.02]
[1751479046801,16.92277343,2564.8,2564.7,0.02]
[1751479047112,21.31083395,2564.8,2564.7,0.02]
[1751479047295,25.20977343,2564.8,2564.7,0.02]
[1751479047624,55.44093456,2564.8,2564.7,0.02]
[1751479047833,17.96001791,2564.8,2564.7,0.02]
[1751479048128,17.7487711,2564.8,2564.7,0.02]
[1751479048421,13.02383395,2564.8,2564.7,0.02]
[1751479048607,1.4854,2564.8,2564.7,0.02]